fUST/lending_fUST_20250517
["ID","MTS","AMOUNT","RATE_DAILY","PERIOD"]
[361327234,1747477836435,-151.0,0.00016438,2]
[361327235,1747477836444,-151.0,0.00016438,2]
[361327236,1747477836453,-151.0,0.00016438,2]
[361327237,1747477836462,-160.711953,0.00016438,2]
[361327238,1747477836471,-158.498364,0.00016438,2]
[361327239,1747477836480,-562.3834492,0.00016438,2]
[361327240,1747477836490,-1752.390443,0.00016438,2]
[361327241,1747477836500,-1752.390443,0.00016438,2]
[361327242,1747477836509,-1752.390443,0.00016438,2]
[361327243,1747477836518,-1752.390443,0.00016438,2]
[361327244,1747477836528,-257.524774,0.00016438,2]
[361327245,1747477836537,-257.524774,0.00016438,2]
[361327246,1747477836547,-257.524774,0.00016438,2]
[361327247,1747477836556,-257.524774,0.00016438,2]
[361327248,1747477836565,-257.524774,0.00016438,2]
[361327249,1747477836574,-257.524774,0.00016438,2]
[361327250,1747477836583,-500.0,0.00016438,2]
[361327251,1747477836593,-250.14589561,0.00016438,2]
[361327252,1747477836602,-3000.0,0.0001644,2]
[361327253,1747477836611,-3000.0,0.0001645,2]
[361327254,1747477836620,-3000.0,0.0001646,2]
[361327255,1747477836630,-3000.0,0.0001647,2]
[361327256,1747477836639,-905.16507239,0.00016474,2]
[361327257,1747477836649,-1000.0,0.00016474,2]
[361327258,1747477836658,-1000.0,0.00016474,2]
[361327259,1747477836667,-3000.0,0.0001648,2]
[361327260,1747477836676,-3000.0,0.0001649,2]
[361327261,1747477836685,-3000.0,0.000165,2]
[361327262,1747477836694,-3000.0,0.0001651,2]
[361327263,1747477836703,-3000.0,0.0001652,2]
[361327264,1747477836712,-750.8401,0.00016521,2]
[361327265,1747477836722,-750.8401,0.00016521,2]
[361327266,1747477836731,-3000.0,0.0001653,2]
[361327267,1747477836740,-1752.390443,0.00016531,2]
[361327268,1747477836750,-1752.390443,0.00016531,2]
[361327269,1747477836758,-257.524774,0.00016531,2]
[361327270,1747477836768,-257.524774,0.00016531,2]
[361327271,1747477836777,-3000.0,0.0001654,2]
[361327272,1747477836786,-3000.0,0.0001655,2]
[361327273,1747477836795,-156.367273,0.0001655,2]
[361327274,1747477836804,-3000.0,0.0001656,2]
[361327275,1747477836813,-3000.0,0.0001657,2]
[361327276,1747477836823,-701.12,0.00016575,2]
[361327277,1747477836832,-3000.0,0.0001658,2]
[361327278,1747477836841,-4191.318738,0.0001659,2]
[361327279,1747477836850,-151.0,0.0001659,2]
[361327280,1747477836859,-1500.0,0.00016668,2]
[361327281,1747477836867,-701.12,0.00016712,2]
[361327282,1747477836876,-626.8706437,0.00016712,2]
[361327283,1747477836885,-1500.0,0.0001675,2]
[361327284,1747477836894,-153.37618091,0.000168,2]
[361327285,1747477836904,-151.0,0.000168,2]
[361327286,1747477836913,-701.28309113,0.00016849,2]
[361327287,1747477836923,-14063.0190302,0.000169,2]
[361327288,1747477836932,-151.0,0.000169,2]
[361327289,1747477836941,-2000.0,0.000169,2]
[361327290,1747477836950,-2813436.97811113,0.00016972,2]
[361327341,1747477842791,-3137.65028175,0.00012739,2]
[361327343,1747477842801,-300.0,0.00012868,2]
[361327345,1747477842810,-450.0,0.00013698,2]
[361327347,1747477842819,-450.0,0.00013698,2]
[361327349,1747477842828,-450.0,0.00013698,2]
[361327351,1747477842837,-450.0,0.00013698,2]
[361327353,1747477842846,-450.0,0.00013698,2]
[361327355,1747477842855,-450.0,0.00013698,2]
[361327357,1747477842864,-523.83,0.00013698,2]
[361327359,1747477842873,-479.37728458,0.00013698,2]
[361327361,1747477842882,-451.16505351,0.00013698,2]
[361327363,1747477842892,-450.0,0.00013698,2]
[361327365,1747477842901,-451.93618422,0.00013698,2]
[361327368,1747477842910,-450.0,0.00013698,2]
[361327371,1747477842919,-483.06,0.00013835,2]
[361327373,1747477842928,-500.0,0.00013987,2]
[361327376,1747477842937,-500.0,0.00013987,2]
[361327379,1747477842946,-500.0,0.00013987,2]
[361327381,1747477842955,-500.0,0.00013987,2]
[361327384,1747477842965,-500.0,0.00013987,2]
[361327386,1747477842974,-500.0,0.00013987,2]
[361327388,1747477842982,-270.79904326,0.00013987,2]
[361327389,1747477842991,-500.0,0.00013987,2]
[361327390,1747477843002,-500.0,0.00013987,2]
[361327391,1747477843011,-461.44963363,0.00013987,2]
[361327392,1747477843019,-500.0,0.00013987,2]
[361327393,1747477843029,-500.0,0.00013987,2]
[361327394,1747477843038,-500.0,0.00013987,2]
[361327395,1747477843047,-500.0,0.00013987,2]
[361327396,1747477843057,-586.1575985,0.00013987,2]
[361327397,1747477843067,-500.0,0.00013987,2]
[361327398,1747477843076,-40262.26065233,0.00016972,2]
[361327400,1747477897827,204.489722,0.00027397,120]
[361327403,1747478592363,2504.0,0.00027397,120]
[361327406,1747479029811,204.489722,0.00027397,120]
[361327411,1747479031840,-5000.0,0.00013289,2]
[361327414,1747479031850,-300.0,0.00013671,2]
[361327416,1747479031859,-300.0,0.00013672,2]
[361327418,1747479031868,-300.0,0.00013672,2]
[361327420,1747479031878,-1200.0,0.00013672,2]
[361327421,1747479031887,-500.0,0.00013673,2]
[361327423,1747479031897,-500.0,0.00013673,2]
[361327424,1747479031906,-500.0,0.00013673,2]
[361327425,1747479031916,-501.01105347,0.00013673,2]
[361327426,1747479031926,-500.0,0.00013673,2]
[361327427,1747479031936,-500.0,0.00013673,2]
[361327428,1747479031946,-500.0,0.00013673,2]
[361327429,1747479031956,-500.0,0.00013673,2]
[361327430,1747479031965,-500.0,0.00013673,2]
[361327432,1747479031975,-500.0,0.00013673,2]
[361327433,1747479031987,-503.63586101,0.00013673,2]
[361327434,1747479031997,-500.0,0.00013673,2]
[361327435,1747479032007,-500.0,0.00013673,2]
[361327436,1747479032017,-11122.19463487,0.00013673,2]
[361327437,1747479032039,-5267.3710204,0.00013673,2]
[361327438,1747479032049,-500.0,0.00013696,2]
[361327439,1747479032058,-500.0,0.00013696,2]
[361327440,1747479032068,-500.0,0.00013696,2]
[361327441,1747479032078,-407.8833117,0.00013696,2]
[361327442,1747479032087,-500.0,0.00013696,2]
[361327443,1747479032096,-165.74243961,0.00013696,2]
[361327444,1747479032107,-500.0,0.00013696,2]
[361327446,1747479032116,-500.0,0.00013696,2]
[361327447,1747479032125,-500.0,0.00013696,2]
[361327448,1747479032134,-500.0,0.00013696,2]
[361327449,1747479032144,-191.94323916,0.00013696,2]
[361327450,1747479032153,-500.0,0.00013696,2]
[361327451,1747479032163,-500.0,0.00013696,2]
[361327452,1747479032374,-500.0,0.00013696,2]
[361327453,1747479032388,-424.85716572,0.00013696,2]
[361327454,1747479032398,-500.0,0.00013696,2]
[361327455,1747479032408,-510.8259617,0.00013696,2]
[361327456,1747479032417,-539.55933028,0.00013697,2]
[361327457,1747479032427,-500.0,0.00013697,2]
[361327458,1747479032436,-500.0,0.00013697,2]
[361327459,1747479032446,-500.0,0.00013697,2]
[361327460,1747479032455,-500.0,0.00013697,2]
[361327461,1747479032465,-510.31031895,0.00013697,2]
[361327462,1747479032475,-500.0,0.00013697,2]
[361327463,1747479032485,-212.56188956,0.00013697,2]
[361327464,1747479032494,-500.0,0.00013697,2]
[361327465,1747479032504,-572.21074586,0.00013697,2]
[361327466,1747479032513,-300.01353576,0.00013698,2]
[361327467,1747479032524,-450.0,0.00013698,2]
[361327468,1747479032533,-450.0,0.00013698,2]
[361327469,1747479032543,-450.0,0.00013698,2]
[361327470,1747479032552,-450.0,0.00013698,2]
[361327471,1747479032561,-450.0,0.00013698,2]
[361327472,1747479032571,-450.0,0.00013698,2]
[361327473,1747479032580,-450.0,0.00013698,2]
[361327474,1747479032590,-450.0,0.00013698,2]
[361327475,1747479032599,-450.0,0.00013698,2]
[361327476,1747479032610,-357.74841134,0.00013698,2]
[361327477,1747479032620,-450.0,0.00013698,2]
[361327478,1747479032630,-457.6255762,0.00013698,2]
[361327479,1747479032639,-450.0,0.00013698,2]
[361327480,1747479032649,-450.0,0.00013698,2]
[361327481,1747479032659,-450.0,0.00013698,2]
[361327482,1747479032672,-450.0,0.00013698,2]
[361327483,1747479032682,-450.0,0.00013698,2]
[361327484,1747479032691,-413.20167947,0.00013698,2]
[361327485,1747479032701,-450.0,0.00013698,2]
[361327486,1747479032711,-450.0,0.00013698,2]
[361327487,1747479032720,-402.39807862,0.00013698,2]
[361327488,1747479032731,-450.0,0.00013698,2]
[361327489,1747479032741,-450.0,0.00013698,2]
[361327490,1747479032752,-450.0,0.00013698,2]
[361327491,1747479032762,-408.22764233,0.00013698,2]
[361327492,1747479032771,-450.0,0.00013698,2]
[361327493,1747479032780,-450.0,0.00013698,2]
[361327494,1747479032790,-450.0,0.00013698,2]
[361327495,1747479032800,-450.0,0.00013698,2]
[361327496,1747479032809,-450.0,0.00013698,2]
[361327497,1747479032819,-221.955436,0.00013698,2]
[361327498,1747479032828,-450.0,0.00013698,2]
[361327499,1747479032837,-450.0,0.00013698,2]
[361327500,1747479032846,-450.0,0.00013698,2]
[361327501,1747479032855,-519.51050722,0.00013698,2]
[361327502,1747479032865,-450.0,0.00013698,2]
[361327503,1747479032874,-450.0,0.00013698,2]
[361327504,1747479032884,-450.0,0.00013698,2]
[361327505,1747479032893,-400.0,0.00013698,2]
[361327506,1747479032903,-404.36247701,0.00013698,2]
[361327507,1747479032912,-450.0,0.00013698,2]
[361327508,1747479032921,-450.0,0.00013698,2]
[361327509,1747479032931,-450.0,0.00013698,2]
[361327510,1747479032940,-454.83144593,0.00013698,2]
[361327511,1747479032950,-450.0,0.00013698,2]
[361327512,1747479032959,-402.86731105,0.00013698,2]
[361327513,1747479032968,-450.0,0.00013698,2]
[361327514,1747479032977,-406.93851351,0.00013698,2]
[361327515,1747479032987,-450.0,0.00013698,2]
[361327516,1747479032996,-450.0,0.00013698,2]
[361327517,1747479033005,-450.0,0.00013698,2]
[361327518,1747479033015,-450.0,0.00013698,2]
[361327519,1747479033023,-450.0,0.00013698,2]
[361327520,1747479033032,-450.0,0.00013698,2]
[361327521,1747479033041,-568.76818091,0.00013698,2]
[361327522,1747479033051,-450.0,0.00013698,2]
[361327523,1747479033060,-407.3558199,0.00013698,2]
[361327524,1747479033070,-450.0,0.00013698,2]
[361327525,1747479033079,-591.11028764,0.00013698,2]
[361327526,1747479033088,-551.7409017,0.00013698,2]
[361327527,1747479033098,-450.0,0.00013698,2]
[361327528,1747479033107,-450.0,0.00013698,2]
[361327529,1747479033117,-507.2223627,0.00013698,2]
[361327530,1747479033126,-400.0,0.00013698,2]
[361327531,1747479033136,-450.0,0.00013698,2]
[361327532,1747479033145,-450.0,0.00013698,2]
[361327533,1747479033154,-450.0,0.00013698,2]
[361327534,1747479033164,-450.0,0.00013698,2]
[361327535,1747479033174,-450.0,0.00013698,2]
[361327536,1747479033184,-450.0,0.00013698,2]
[361327537,1747479033193,-450.0,0.00013698,2]
[361327538,1747479033203,-450.0,0.00013698,2]
[361327539,1747479033213,-450.0,0.00013698,2]
[361327540,1747479033222,-439.50700889,0.00013698,2]
[361327541,1747479033232,-450.0,0.00013698,2]
[361327542,1747479033242,-450.0,0.00013698,2]
[361327543,1747479033251,-450.0,0.00013698,2]
[361327544,1747479033260,-450.0,0.00013698,2]
[361327545,1747479033270,-450.0,0.00013698,2]
[361327546,1747479033279,-450.0,0.00013698,2]
[361327547,1747479033290,-450.0,0.00013698,2]
[361327548,1747479033299,-450.0,0.00013698,2]
[361327549,1747479033308,-450.0,0.00013698,2]
[361327550,1747479033318,-450.0,0.00013698,2]
[361327551,1747479033327,-450.0,0.00013698,2]
[361327552,1747479033336,-456.0,0.00013698,2]
[361327553,1747479033345,-450.0,0.00013698,2]
[361327554,1747479033355,-450.0,0.00013698,2]
[361327555,1747479033364,-450.0,0.00013698,2]
[361327556,1747479033374,-450.0,0.00013698,2]
[361327557,1747479033383,-450.0,0.00013698,2]
[361327558,1747479033392,-553.81,0.00013698,2]
[361327559,1747479033401,-157.96,0.00013698,2]
[361327560,1747479033411,-450.0,0.00013698,2]
[361327561,1747479033420,-450.0,0.00013698,2]
[361327562,1747479033430,-400.0,0.00013698,2]
[361327563,1747479033440,-450.0,0.00013698,2]
[361327564,1747479033449,-250.0,0.00013698,2]
[361327565,1747479033459,-400.0,0.00013698,2]
[361327566,1747479033468,-450.0,0.00013698,2]
[361327567,1747479033477,-450.0,0.00013698,2]
[361327568,1747479033487,-450.0,0.00013698,2]
[361327569,1747479033496,-421.3256497,0.00013698,2]
[361327570,1747479033506,-450.0,0.00013698,2]
[361327571,1747479033515,-402.55,0.00013698,2]
[361327572,1747479033524,-450.0,0.00013698,2]
[361327573,1747479033534,-400.0,0.00013698,2]
[361327574,1747479033544,-450.0,0.00013698,2]
[361327575,1747479033553,-450.0,0.00013698,2]
[361327576,1747479033563,-450.0,0.00013698,2]
[361327577,1747479033573,-450.0,0.00013698,2]
[361327578,1747479033583,-450.0,0.00013698,2]
[361327579,1747479033592,-403.33813006,0.00013698,2]
[361327580,1747479033602,-450.0,0.00013698,2]
[361327581,1747479033611,-450.0,0.00013698,2]
[361327582,1747479033621,-450.0,0.00013698,2]
[361327583,1747479033634,-450.0,0.00013698,2]
[361327584,1747479033644,-450.0,0.00013698,2]
[361327585,1747479033654,-389.8271928,0.00013698,2]
[361327586,1747479033663,-351.28736625,0.00013698,2]
[361327587,1747479033678,-409.26676385,0.00013698,2]
[361327588,1747479033687,-364.1057876,0.00013698,2]
[361327589,1747479033880,-85.8942124,0.00013698,2]
[361327590,1747479033891,-352.89878652,0.00013698,2]
[361327591,1747479033902,-450.0,0.00013698,2]
[361327592,1747479033911,-450.0,0.00013698,2]
[361327593,1747479033921,-352.01378937,0.00013698,2]
[361327594,1747479033931,-450.0,0.00013698,2]
[361327595,1747479033942,-254.41295235,0.00013698,2]
[361327596,1747479033952,-353.03216299,0.00013698,2]
[361327597,1747479033962,-450.0,0.00013698,2]
[361327598,1747479033972,-450.0,0.00013698,2]
[361327599,1747479033983,-357.34241287,0.00013698,2]
[361327600,1747479033993,-446.09831771,0.00013698,2]
[361327601,1747479034003,-450.0,0.00013698,2]
[361327602,1747479034013,-450.0,0.00013698,2]
[361327603,1747479034023,-351.05044979,0.00013698,2]
[361327604,1747479034042,-450.0,0.00013698,2]
[361327605,1747479034052,-413.12674276,0.00013698,2]
[361327606,1747479034062,-450.0,0.00013698,2]
[361327607,1747479034072,-450.0,0.00013698,2]
[361327608,1747479034082,-450.0,0.00013698,2]
[361327609,1747479034091,-450.0,0.00013698,2]
[361327610,1747479034101,-450.0,0.00013698,2]
[361327611,1747479034111,-450.0,0.00013698,2]
[361327612,1747479034120,-477.70322709,0.00013698,2]
[361327613,1747479034130,-450.0,0.00013698,2]
[361327614,1747479034139,-450.0,0.00013698,2]
[361327615,1747479034149,-450.0,0.00013698,2]
[361327616,1747479034159,-450.0,0.00013698,2]
[361327617,1747479034168,-450.0,0.00013698,2]
[361327618,1747479034178,-450.0,0.00013698,2]
[361327619,1747479034187,-450.0,0.00013698,2]
[361327620,1747479034196,-450.0,0.00013698,2]
[361327621,1747479034205,-450.0,0.00013698,2]
[361327622,1747479034215,-558.07451241,0.00013698,2]
[361327623,1747479034224,-501.07368235,0.00013698,2]
[361327624,1747479034234,-450.0,0.00013698,2]
[361327625,1747479034244,-492.43016432,0.00013698,2]
[361327626,1747479034254,-450.0,0.00013698,2]
[361327627,1747479034263,-450.0,0.00013698,2]
[361327628,1747479034272,-450.0,0.00013698,2]
[361327629,1747479034282,-450.0,0.00013698,2]
[361327630,1747479034292,-450.0,0.00013698,2]
[361327631,1747479034302,-450.0,0.00013698,2]
[361327632,1747479034311,-355.37416722,0.00013698,2]
[361327633,1747479034321,-450.0,0.00013698,2]
[361327634,1747479034330,-450.0,0.00013698,2]
[361327635,1747479034340,-450.0,0.00013698,2]
[361327636,1747479034350,-450.0,0.00013698,2]
[361327637,1747479034359,-450.0,0.00013698,2]
[361327638,1747479034368,-450.0,0.00013698,2]
[361327639,1747479034378,-350.0,0.00013698,2]
[361327640,1747479034388,-450.0,0.00013698,2]
[361327641,1747479034398,-450.0,0.00013698,2]
[361327642,1747479034407,-450.0,0.00013698,2]
[361327643,1747479034417,-450.0,0.00013698,2]
[361327644,1747479034426,-350.0,0.00013698,2]
[361327645,1747479034436,-450.0,0.00013698,2]
[361327646,1747479034445,-450.0,0.00013698,2]
[361327647,1747479034455,-450.0,0.00013698,2]
[361327648,1747479034464,-450.0,0.00013698,2]
[361327649,1747479034474,-402.74335367,0.00013698,2]
[361327650,1747479034484,-450.0,0.00013698,2]
[361327651,1747479034494,-450.0,0.00013698,2]
[361327652,1747479034503,-450.0,0.00013698,2]
[361327653,1747479034513,-274.09066979,0.00013698,2]
[361327654,1747479034523,-176.77547368,0.00013698,2]
[361327655,1747479034533,-401.3575888,0.00013698,2]
[361327656,1747479034543,-350.0,0.00013698,2]
[361327657,1747479034553,-450.0,0.00013698,2]
[361327658,1747479034562,-450.0,0.00013698,2]
[361327659,1747479034572,-1016.04,0.00013698,2]
[361327660,1747479034581,-1016.04,0.00013698,2]
[361327661,1747479034591,-1016.04,0.00013698,2]
[361327662,1747479034601,-1016.04,0.00013698,2]
[361327663,1747479034610,-350.0,0.00013698,2]
[361327664,1747479034620,-1247.69,0.00013698,2]
[361327665,1747479034629,-1247.69,0.00013698,2]
[361327666,1747479034639,-1247.69,0.00013698,2]
[361327667,1747479034649,-1247.69,0.00013698,2]
[361327668,1747479034659,-1247.69,0.00013698,2]
[361327669,1747479034672,-1247.69,0.00013698,2]
[361327670,1747479034682,-350.0,0.00013698,2]
[361327671,1747479034691,-1247.69,0.00013698,2]
[361327672,1747479034701,-1247.69,0.00013698,2]
[361327673,1747479034712,-1247.69,0.00013698,2]
[361327674,1747479034722,-1247.69,0.00013698,2]
[361327675,1747479034732,-403.81462006,0.00013698,2]
[361327676,1747479034741,-1247.69,0.00013698,2]
[361327677,1747479034755,-450.0,0.00013698,2]
[361327678,1747479034765,-450.0,0.00013698,2]
[361327679,1747479034775,-450.0,0.00013698,2]
[361327680,1747479034785,-450.0,0.00013698,2]
[361327681,1747479034794,-450.0,0.00013698,2]
[361327682,1747479034803,-405.43909677,0.00013698,2]
[361327683,1747479034812,-450.0,0.00013698,2]
[361327684,1747479034821,-450.0,0.00013698,2]
[361327685,1747479034831,-450.0,0.00013698,2]
[361327686,1747479034841,-450.0,0.00013698,2]
[361327687,1747479034850,-453.8643203,0.00013698,2]
[361327688,1747479034859,-1004.92510082,0.00013698,2]
[361327689,1747479034868,-508.49341999,0.00013698,2]
[361327690,1747479034878,-450.0,0.00013698,2]
[361327691,1747479034887,-450.0,0.00013698,2]
[361327692,1747479034896,-450.0,0.00013698,2]
[361327693,1747479034906,-450.0,0.00013698,2]
[361327694,1747479034915,-450.0,0.00013698,2]
[361327695,1747479034924,-450.0,0.00013698,2]
[361327696,1747479034934,-350.0,0.00013698,2]
[361327697,1747479034943,-450.0,0.00013698,2]
[361327698,1747479034953,-450.0,0.00013698,2]
[361327699,1747479034962,-450.0,0.00013698,2]
[361327700,1747479034972,-450.0,0.00013698,2]
[361327701,1747479034981,-156.65084749,0.00013698,2]
[361327702,1747479034990,-450.0,0.00013698,2]
[361327703,1747479034999,-450.0,0.00013698,2]
[361327704,1747479035009,-450.0,0.00013698,2]
[361327705,1747479035018,-450.0,0.00013698,2]
[361327706,1747479035027,-450.0,0.00013698,2]
[361327707,1747479035037,-450.0,0.00013698,2]
[361327708,1747479035046,-450.0,0.00013698,2]
[361327709,1747479035056,-450.0,0.00013698,2]
[361327710,1747479035065,-450.0,0.00013698,2]
[361327711,1747479035075,-450.0,0.00013698,2]
[361327712,1747479035084,-283.24437252,0.00013698,2]
[361327713,1747479035094,-450.0,0.00013698,2]
[361327714,1747479035103,-350.0,0.00013698,2]
[361327715,1747479035112,-450.0,0.00013698,2]
[361327716,1747479035122,-350.0,0.00013698,2]
[361327717,1747479035131,-450.0,0.00013698,2]
[361327718,1747479035140,-450.0,0.00013698,2]
[361327719,1747479035149,-450.0,0.00013698,2]
[361327720,1747479035158,-450.0,0.00013698,2]
[361327721,1747479035168,-450.0,0.00013698,2]
[361327722,1747479035177,-450.0,0.00013698,2]
[361327723,1747479035186,-450.0,0.00013698,2]
[361327724,1747479035196,-450.0,0.00013698,2]
[361327725,1747479035206,-450.0,0.00013698,2]
[361327726,1747479035215,-450.0,0.00013698,2]
[361327727,1747479035224,-450.0,0.00013698,2]
[361327728,1747479035234,-450.0,0.00013698,2]
[361327729,1747479035244,-450.0,0.00013698,2]
[361327730,1747479035253,-400.27680776,0.00013698,2]
[361327731,1747479035262,-450.0,0.00013698,2]
[361327732,1747479035272,-450.0,0.00013698,2]
[361327733,1747479035282,-450.0,0.00013698,2]
[361327734,1747479035291,-846.01,0.00013698,2]
[361327735,1747479035300,-846.01,0.00013698,2]
[361327736,1747479035311,-846.01,0.00013698,2]
[361327737,1747479035320,-846.01,0.00013698,2]
[361327738,1747479035329,-846.01,0.00013698,2]
[361327739,1747479035339,-846.01,0.00013698,2]
[361327740,1747479035348,-846.01,0.00013698,2]
[361327741,1747479035357,-846.01,0.00013698,2]
[361327742,1747479035367,-846.01,0.00013698,2]
[361327743,1747479035376,-450.0,0.00013698,2]
[361327744,1747479035385,-846.01,0.00013698,2]
[361327745,1747479035396,-846.01,0.00013698,2]
[361327746,1747479035405,-450.0,0.00013698,2]
[361327747,1747479035552,-450.0,0.00013698,2]
[361327748,1747479035563,-450.0,0.00013698,2]
[361327749,1747479035572,-450.0,0.00013698,2]
[361327750,1747479035583,-450.0,0.00013698,2]
[361327751,1747479035592,-450.0,0.00013698,2]
[361327752,1747479035601,-450.0,0.00013698,2]
[361327753,1747479035611,-450.0,0.00013698,2]
[361327754,1747479035620,-506.8109206,0.00013698,2]
[361327755,1747479035630,-450.0,0.00013698,2]
[361327756,1747479035639,-450.0,0.00013698,2]
[361327757,1747479035649,-450.0,0.00013698,2]
[361327758,1747479035658,-450.0,0.00013698,2]
[361327759,1747479035667,-450.0,0.00013698,2]
[361327760,1747479035680,-450.0,0.00013698,2]
[361327761,1747479035690,-450.0,0.00013698,2]
[361327762,1747479035700,-431.76375969,0.00013698,2]
[361327763,1747479035711,-450.0,0.00013698,2]
[361327764,1747479035721,-450.0,0.00013698,2]
[361327765,1747479035730,-450.0,0.00013698,2]
[361327766,1747479035742,-450.0,0.00013698,2]
[361327767,1747479035751,-450.0,0.00013698,2]
[361327768,1747479035761,-450.0,0.00013698,2]
[361327769,1747479035770,-450.0,0.00013698,2]
[361327770,1747479035780,-407.92208837,0.00013698,2]
[361327771,1747479035789,-293.4064955,0.00013698,2]
[361327772,1747479035799,-329.36749706,0.00013698,2]
[361327773,1747479035808,-450.0,0.00013698,2]
[361327774,1747479035818,-401.12162432,0.00013698,2]
[361327775,1747479035827,-450.0,0.00013698,2]
[361327776,1747479035837,-450.0,0.00013698,2]
[361327777,1747479035846,-450.0,0.00013698,2]
[361327778,1747479035855,-450.0,0.00013698,2]
[361327779,1747479035865,-230.04697997,0.00013698,2]
[361327780,1747479035874,-307.723936,0.00013698,2]
[361327781,1747479035884,-450.0,0.00013698,2]
[361327782,1747479035893,-450.0,0.00013698,2]
[361327783,1747479035903,-450.0,0.00013698,2]
[361327784,1747479035912,-401.5546741,0.00013698,2]
[361327785,1747479035922,-333.40402997,0.00013698,2]
[361327786,1747479035932,-450.0,0.00013698,2]
[361327787,1747479035941,-500.0,0.00013698,2]
[361327788,1747479035951,-500.0,0.00013698,2]
[361327789,1747479035960,-539.8569257,0.00013698,2]
[361327790,1747479035969,-500.0,0.00013698,2]
[361327791,1747479035978,-500.0,0.00013698,2]
[361327792,1747479035989,-500.0,0.00013698,2]
[361327793,1747479035998,-500.0,0.00013698,2]
[361327794,1747479036007,-450.0,0.00013698,2]
[361327795,1747479036017,-500.0,0.00013698,2]
[361327796,1747479036026,-1000.0,0.00013698,2]
[361327797,1747479036035,-500.0,0.00013698,2]
[361327798,1747479036044,-500.0,0.00013698,2]
[361327799,1747479036054,-500.0,0.00013698,2]
[361327800,1747479036063,-450.0,0.00013698,2]
[361327801,1747479036072,-450.0,0.00013698,2]
[361327802,1747479036081,-346.0725136,0.00013698,2]
[361327803,1747479036090,-450.0,0.00013698,2]
[361327804,1747479036099,-450.0,0.00013698,2]
[361327805,1747479036109,-450.0,0.00013698,2]
[361327806,1747479036118,-450.0,0.00013698,2]
[361327807,1747479036127,-300.92984185,0.00013698,2]
[361327808,1747479036137,-450.0,0.00013698,2]
[361327809,1747479036146,-441.0054728,0.00013698,2]
[361327810,1747479036155,-450.0,0.00013698,2]
[361327811,1747479036164,-450.0,0.00013698,2]
[361327812,1747479036173,-450.0,0.00013698,2]
[361327813,1747479036182,-450.0,0.00013698,2]
[361327814,1747479036191,-450.0,0.00013698,2]
[361327815,1747479036201,-450.0,0.00013698,2]
[361327816,1747479036210,-450.0,0.00013698,2]
[361327817,1747479036219,-450.0,0.00013698,2]
[361327818,1747479036229,-450.0,0.00013698,2]
[361327819,1747479036239,-450.0,0.00013698,2]
[361327820,1747479036248,-450.0,0.00013698,2]
[361327821,1747479036257,-450.0,0.00013698,2]
[361327822,1747479036267,-450.0,0.00013698,2]
[361327823,1747479036276,-450.0,0.00013698,2]
[361327824,1747479036285,-450.0,0.00013698,2]
[361327825,1747479036295,-350.0,0.00013698,2]
[361327826,1747479036304,-450.0,0.00013698,2]